[Event "Early-Titled-Tuesday-Blitz-February-27-2024"]
[Site "Chess.com"]
[Date "2024.02.27"]
[Round "1"]
[White "NowInChess"]
[Black "FoggyMorning"]
[Result "0-1"]
[WhiteElo "2279"]
[BlackElo "2617"]
[TimeControl "180+1"]
[EndTime "8:07:38 PST"]
[Termination "FoggyMorning won on time"]

1. e4 {[%clk 0:03:00.9]} 1... e6 {[%clk 0:02:59.9]} 2. d3 {[%clk 0:03:00.6]}
2... d5 {[%clk 0:03:00.5]} 3. Nd2 {[%clk 0:03:00.4]} 3... Nc6 {[%clk 0:02:59.3]}
4. Ngf3 {[%clk 0:02:59.5]} 4... Nf6 {[%clk 0:02:59.9]} 5. c3 {[%clk 0:02:57.8]}
5... e5 {[%clk 0:02:59.5]} 6. Be2 {[%clk 0:02:55]} 6... Be7 {[%clk 0:02:58.7]}
7. O-O {[%clk 0:02:54.5]} 7... O-O {[%clk 0:02:59.4]} 8. Qc2 {[%clk 0:02:54.2]}
8... a5 {[%clk 0:02:56.6]} 9. a4 {[%clk 0:02:53.7]} 9... Re8 {[%clk 0:02:54.3]}
10. Re1 {[%clk 0:02:53.3]} 10... Bc5 {[%clk 0:02:46.3]} 11. h3 {[%clk 0:02:46]}
11... h6 {[%clk 0:02:44.5]} 12. Bf1 {[%clk 0:02:34.9]} 12... b6 {[%clk
0:02:34.2]} 13. exd5 {[%clk 0:02:34.2]} 13... Nxd5 {[%clk 0:02:31.7]} 14. Nc4
{[%clk 0:02:29.9]} 14... Qf6 {[%clk 0:02:06.9]} 15. Nfxe5 {[%clk 0:01:24.9]}
15... Nxe5 {[%clk 0:01:46.1]} 16. Nxe5 {[%clk 0:01:25.8]} 16... Rxe5 {[%clk
0:01:45]} 17. Rxe5 {[%clk 0:01:26.4]} 17... Qxe5 {[%clk 0:01:45.4]} 18. d4
{[%clk 0:01:26.9]} 18... Bf5 {[%clk 0:01:20.8]} 19. Qd1 {[%clk 0:01:02.5]} 19...
Bxd4 {[%clk 0:01:13.5]} 20. Qxd4 {[%clk 0:00:55.1]} 20... Qxd4 {[%clk
0:01:12.8]} 21. cxd4 {[%clk 0:00:54.9]} 21... Rd8 {[%clk 0:01:11.9]} 22. Bd2
{[%clk 0:00:47.3]} 22... Nb4 {[%clk 0:00:52.5]} 23. Be3 {[%clk 0:00:36.4]} 23...
Be4 {[%clk 0:00:43.3]} 24. Rc1 {[%clk 0:00:31]} 24... c6 {[%clk 0:00:41.9]} 25.
Bc4 {[%clk 0:00:27.3]} 25... Kf8 {[%clk 0:00:39.1]} 26. f3 {[%clk 0:00:11.7]}
26... Bg6 {[%clk 0:00:34.7]} 27. Kf2 {[%clk 0:00:11.3]} 27... Nc2 {[%clk
0:00:22.7]} 28. Rd1 {[%clk 0:00:07.9]} 28... Nb4 {[%clk 0:00:09.5]} 29. Rd2
{[%clk 0:00:06.9]} 29... f6 {[%clk 0:00:09.3]} 30. g4 {[%clk 0:00:05.6]} 30...
Bf7 {[%clk 0:00:09.7]} 31. Bxf7 {[%clk 0:00:05]} 31... Kxf7 {[%clk 0:00:10.6]}
32. Bf4 {[%clk 0:00:04.5]} 32... Rd7 {[%clk 0:00:08.7]} 33. h4 {[%clk
0:00:03.5]} 33... Ke6 {[%clk 0:00:08.4]} 34. h5 {[%clk 0:00:03.6]} 34... Kd5
{[%clk 0:00:08.8]} 35. Be3 {[%clk 0:00:03.7]} 35... Re7 {[%clk 0:00:07.1]} 36.
Bf4 {[%clk 0:00:03.4]} 36... Kc4 {[%clk 0:00:04]} 37. Be3 {[%clk 0:00:02.4]}
37... Nd5 {[%clk 0:00:03.4]} 38. Re2 {[%clk 0:00:01.2]} 38... Kd3 {[%clk
0:00:03.3]} 0-1

[Event "Early-Titled-Tuesday-Blitz-February-27-2024"]
[Site "Chess.com"]
[Date "2024.02.27"]
[Round "1"]
[White "Ariadna_Atreides"]
[Black "Predator0608"]
[Result "0-1"]
[WhiteElo "2200"]
[BlackElo "2585"]
[TimeControl "180+1"]
[EndTime "8:07:38 PST"]
[Termination "Predator0608 won by checkmate"]

1. d4 {[%clk 0:03:00.9]} 1... Nf6 {[%clk 0:02:59.4]} 2. Nf3 {[%clk 0:03:00.6]}
2... b6 {[%clk 0:02:56.6]} 3. e3 {[%clk 0:02:59.5]} 3... Bb7 {[%clk 0:02:57]} 4.
Bd3 {[%clk 0:03:00]} 4... g6 {[%clk 0:02:57.5]} 5. Nbd2 {[%clk 0:03:00.1]} 5...
Bg7 {[%clk 0:02:57.8]} 6. O-O {[%clk 0:03:00.2]} 6... O-O {[%clk 0:02:58.4]} 7.
b3 {[%clk 0:03:00.3]} 7... d6 {[%clk 0:02:58.8]} 8. Bb2 {[%clk 0:03:00.4]} 8...
Nbd7 {[%clk 0:02:59.7]} 9. c4 {[%clk 0:03:00.1]} 9... Re8 {[%clk 0:02:59.5]} 10.
d5 {[%clk 0:02:58.9]} 10... e5 {[%clk 0:02:59.4]} 11. dxe6 {[%clk 0:02:58.7]}
11... fxe6 {[%clk 0:03:00.3]} 12. Rc1 {[%clk 0:02:56.8]} 12... e5 {[%clk
0:02:59.4]} 13. Bb1 {[%clk 0:02:56.3]} 13... Qe7 {[%clk 0:02:58.5]} 14. b4
{[%clk 0:02:53.5]} 14... a5 {[%clk 0:02:57.9]} 15. a3 {[%clk 0:02:49.7]} 15...
Rf8 {[%clk 0:02:56.1]} 16. Qb3 {[%clk 0:02:48.5]} 16... axb4 {[%clk 0:02:54.3]}
17. axb4 {[%clk 0:02:45.5]} 17... Kh8 {[%clk 0:02:51.1]} 18. Ng5 {[%clk
0:02:09.4]} 18... Nh5 {[%clk 0:02:45.2]} 19. Nge4 {[%clk 0:02:06.5]} 19... Qe6
{[%clk 0:01:56.1]} 20. Qd3 {[%clk 0:01:51.7]} 20... Rae8 {[%clk 0:01:39.7]} 21.
c5 {[%clk 0:01:32.8]} 21... d5 {[%clk 0:01:38.3]} 22. Ng3 {[%clk 0:01:28]} 22...
Nxg3 {[%clk 0:01:30.1]} 23. hxg3 {[%clk 0:01:27.1]} 23... bxc5 {[%clk 0:01:29]}
24. bxc5 {[%clk 0:01:26.4]} 24... Ba6 {[%clk 0:01:26.2]} 25. Qc2 {[%clk
0:01:18.6]} 25... Bxf1 {[%clk 0:01:24.8]} 26. Nxf1 {[%clk 0:01:17.1]} 26... c6
{[%clk 0:01:24]} 27. Qc3 {[%clk 0:01:14.1]} 27... Rf7 {[%clk 0:01:21.9]} 28. Nd2
{[%clk 0:01:03.5]} 28... Ref8 {[%clk 0:01:17.6]} 29. Rf1 {[%clk 0:00:56.9]}
29... e4 {[%clk 0:01:02.1]} 30. Qc2 {[%clk 0:00:56.4]} 30... Ne5 {[%clk
0:01:01.1]} 31. Nb3 {[%clk 0:00:49.5]} 31... Qd7 {[%clk 0:00:48]} 32. Nd4 {[%clk
0:00:37.5]} 32... Ng4 {[%clk 0:00:46.9]} 33. Qe2 {[%clk 0:00:33.9]} 33... Rxf2
{[%clk 0:00:42.6]} 34. Rxf2 {[%clk 0:00:30.9]} 34... Rxf2 {[%clk 0:00:43.5]} 35.
Qa6 {[%clk 0:00:29.1]} 35... Qf7 {[%clk 0:00:34.4]} 36. Qa8+ {[%clk 0:00:24.4]}
36... Qf8 {[%clk 0:00:30.3]} 37. Qxf8+ {[%clk 0:00:21.1]} 37... Rxf8 {[%clk
0:00:31.2]} 38. Bc1 {[%clk 0:00:16.4]} 38... Rb8 {[%clk 0:00:30.2]} 39. Bc2
{[%clk 0:00:15.6]} 39... Ra8 {[%clk 0:00:30.3]} 40. Nb3 {[%clk 0:00:11.5]} 40...
Ra2 {[%clk 0:00:29.7]} 41. Bb1 {[%clk 0:00:10.7]} 41... Re2 {[%clk 0:00:30.1]}
42. Kf1 {[%clk 0:00:09.8]} 42... Rf2+ {[%clk 0:00:28.2]} 43. Kg1 {[%clk
0:00:09.1]} 43... Bh6 {[%clk 0:00:26]} 44. Nd4 {[%clk 0:00:07.8]} 44... Rf6
{[%clk 0:00:22]} 45. Bb2 {[%clk 0:00:06]} 45... Bxe3+ {[%clk 0:00:21.8]} 46. Kh1
{[%clk 0:00:06.1]} 46... Rf1# {[%clk 0:00:22.7]} 0-1

[Event "Early-Titled-Tuesday-Blitz-February-27-2024"]
[Site "Chess.com"]
[Date "2024.02.27"]
[Round "1"]
[White "Chessdude1987"]
[Black "Skatchkov_V"]
[Result "0-1"]
[WhiteElo "2345"]
[BlackElo "2651"]
[TimeControl "180+1"]
[EndTime "8:07:41 PST"]
[Termination "Skatchkov_V won on time"]

1. e4 {[%clk 0:03:00.9]} 1... e5 {[%clk 0:02:57.4]} 2. Nf3 {[%clk 0:03:00.6]}
2... Nf6 {[%clk 0:02:57.1]} 3. Nxe5 {[%clk 0:02:59.5]} 3... d6 {[%clk
0:02:57.4]} 4. Nf3 {[%clk 0:02:59.3]} 4... Nxe4 {[%clk 0:02:57.6]} 5. c4 {[%clk
0:02:59.9]} 5... Be7 {[%clk 0:02:53.4]} 6. Nc3 {[%clk 0:02:59.9]} 6... Nxc3
{[%clk 0:02:53.4]} 7. dxc3 {[%clk 0:03:00.8]} 7... Nd7 {[%clk 0:02:51.5]} 8. Qc2
{[%clk 0:02:40.7]} 8... Nc5 {[%clk 0:02:49.7]} 9. Be3 {[%clk 0:02:38.2]} 9...
O-O {[%clk 0:02:50]} 10. O-O-O {[%clk 0:02:36.9]} 10... b6 {[%clk 0:02:41.3]}
11. Nd4 {[%clk 0:02:33.4]} 11... Bb7 {[%clk 0:02:32.9]} 12. Nf5 {[%clk
0:02:28.6]} 12... Bf6 {[%clk 0:02:29.5]} 13. Bxc5 {[%clk 0:02:22]} 13... bxc5
{[%clk 0:02:27.2]} 14. Bd3 {[%clk 0:02:17.2]} 14... Bxg2 {[%clk 0:01:52.7]} 15.
Rhg1 {[%clk 0:02:16.7]} 15... Bf3 {[%clk 0:01:51.9]} 16. Rde1 {[%clk 0:01:46.2]}
16... g6 {[%clk 0:01:50.5]} 17. Rg3 {[%clk 0:01:38.5]} 17... Bh5 {[%clk
0:01:37.5]} 18. Kb1 {[%clk 0:01:31.2]} 18... Kh8 {[%clk 0:01:33]} 19. Ne3 {[%clk
0:01:23.1]} 19... Be5 {[%clk 0:01:20.1]} 20. Rh3 {[%clk 0:01:19.5]} 20... Qg5
{[%clk 0:01:16.9]} 21. Qc1 {[%clk 0:01:12.5]} 21... Qf4 {[%clk 0:00:49.2]} 22.
Qc2 {[%clk 0:00:52.2]} 22... Qg5 {[%clk 0:00:35.8]} 23. Qc1 {[%clk 0:00:51.6]}
23... Qf4 {[%clk 0:00:33.2]} 24. Rxh5 {[%clk 0:00:42.6]} 24... gxh5 {[%clk
0:00:33]} 25. Qd1 {[%clk 0:00:38]} 25... Qxf2 {[%clk 0:00:20.4]} 26. Nd5 {[%clk
0:00:24.6]} 26... Rab8 {[%clk 0:00:18]} 27. Re2 {[%clk 0:00:21]} 27... Qh4
{[%clk 0:00:16.7]} 28. Qc1 {[%clk 0:00:16]} 28... Bg7 {[%clk 0:00:10.9]} 29. Qe3
{[%clk 0:00:08.1]} 29... Qg4 {[%clk 0:00:08.3]} 30. Re1 {[%clk 0:00:04]} 30...
Qe6 {[%clk 0:00:02.8]} 31. Qf2 {[%clk 0:00:03.5]} 31... Qh6 {[%clk 0:00:02.6]}
32. Kc2 {[%clk 0:00:02.2]} 32... Rbe8 {[%clk 0:00:02.8]} 33. Rf1 {[%clk
0:00:02.1]} 33... Re6 {[%clk 0:00:02.3]} 34. Qf5 {[%clk 0:00:01.3]} 34... Re5
{[%clk 0:00:02.5]} 0-1

[Event "Early-Titled-Tuesday-Blitz-February-27-2024"]
[Site "Chess.com"]
[Date "2024.02.27"]
[Round "1"]
[White "MITerryble"]
[Black "xasid81"]
[Result "1-0"]
[WhiteElo "3027"]
[BlackElo "2531"]
[TimeControl "180+1"]
[EndTime "8:07:42 PST"]
[Termination "MITerryble won by resignation"]

1. e4 {[%clk 0:03:00.9]} 1... c6 {[%clk 0:02:59.4]} 2. Nf3 {[%clk 0:03:00]} 2...
d5 {[%clk 0:02:59.9]} 3. exd5 {[%clk 0:03:00.3]} 3... cxd5 {[%clk 0:02:59.4]} 4.
Ne5 {[%clk 0:03:00.9]} 4... Nf6 {[%clk 0:02:54.9]} 5. d4 {[%clk 0:03:01.4]} 5...
Nc6 {[%clk 0:02:51.7]} 6. c3 {[%clk 0:03:00.5]} 6... e6 {[%clk 0:02:49]} 7. Bb5
{[%clk 0:02:59.4]} 7... Bd7 {[%clk 0:02:48.9]} 8. Nxd7 {[%clk 0:02:58.9]} 8...
Qxd7 {[%clk 0:02:49]} 9. O-O {[%clk 0:02:59.3]} 9... a6 {[%clk 0:02:49.3]} 10.
Bd3 {[%clk 0:02:59]} 10... h6 {[%clk 0:02:48.1]} 11. Nd2 {[%clk 0:02:57]} 11...
Bd6 {[%clk 0:02:47.1]} 12. Qe2 {[%clk 0:02:52.8]} 12... O-O {[%clk 0:02:46.7]}
13. f4 {[%clk 0:02:53]} 13... Qc7 {[%clk 0:02:41.2]} 14. g3 {[%clk 0:02:53]}
14... Rfe8 {[%clk 0:02:39.2]} 15. Nf3 {[%clk 0:02:52.8]} 15... Nd7 {[%clk
0:02:36.3]} 16. Bd2 {[%clk 0:02:33.6]} 16... f5 {[%clk 0:02:33.4]} 17. Ne5
{[%clk 0:02:24.8]} 17... Nf6 {[%clk 0:02:33]} 18. g4 {[%clk 0:02:24.4]} 18...
Ne4 {[%clk 0:02:20.7]} 19. gxf5 {[%clk 0:02:18]} 19... exf5 {[%clk 0:02:21.6]}
20. Kh1 {[%clk 0:02:15.4]} 20... Bxe5 {[%clk 0:02:12.4]} 21. fxe5 {[%clk
0:02:15.2]} 21... Rf8 {[%clk 0:02:08.9]} 22. Rg1 {[%clk 0:02:08.5]} 22... Kh7
{[%clk 0:01:49.7]} 23. Raf1 {[%clk 0:02:06.9]} 23... g6 {[%clk 0:01:46.7]} 24.
Rf3 {[%clk 0:01:55.8]} 24... Ne7 {[%clk 0:01:28.5]} 25. Rh3 {[%clk 0:01:52.2]}
25... Ng8 {[%clk 0:01:14]} 26. Bf4 {[%clk 0:01:46.7]} 26... Qg7 {[%clk
0:01:09.7]} 27. c4 {[%clk 0:01:27.2]} 27... dxc4 {[%clk 0:01:06.9]} 28. Bxc4
{[%clk 0:01:28.1]} 28... g5 {[%clk 0:00:45.3]} 29. Be3 {[%clk 0:01:13.7]} 29...
Ne7 {[%clk 0:00:42.4]} 30. Qh5 {[%clk 0:00:54.1]} 30... Qg6 {[%clk 0:00:38.9]}
31. Bxg5 {[%clk 0:00:50.3]} 31... Nf2+ {[%clk 0:00:30.6]} 32. Kg2 {[%clk
0:00:50.5]} 32... Nxh3 {[%clk 0:00:28.4]} 33. Qxh3 {[%clk 0:00:47.4]} 33...
Qxg5+ {[%clk 0:00:25.9]} 34. Kh1 {[%clk 0:00:47.9]} 34... Qd2 {[%clk 0:00:17.6]}
35. Qh4 {[%clk 0:00:44]} 35... Ng6 {[%clk 0:00:15.4]} 36. Qh5 {[%clk 0:00:41.6]}
36... Rg8 {[%clk 0:00:15.1]} 37. Qxf5 {[%clk 0:00:36.1]} 37... Qxd4 {[%clk
0:00:13.7]} 38. Bf7 {[%clk 0:00:35.3]} 38... Qb6 {[%clk 0:00:10.6]} 39. h4
{[%clk 0:00:32.5]} 39... Qc6+ {[%clk 0:00:10.4]} 40. Kh2 {[%clk 0:00:33.2]}
40... Rg7 {[%clk 0:00:10]} 41. h5 {[%clk 0:00:32.7]} 41... Rd8 {[%clk
0:00:08.3]} 42. Rg2 {[%clk 0:00:28.7]} 42... Kh8 {[%clk 0:00:06.5]} 43. hxg6
{[%clk 0:00:28.1]} 43... Rd4 {[%clk 0:00:05.3]} 44. Qh3 {[%clk 0:00:26]} 44...
Qc1 {[%clk 0:00:04.3]} 45. Qg3 {[%clk 0:00:20.5]} 45... Qf4 {[%clk 0:00:04.3]}
46. Qxf4 {[%clk 0:00:20.8]} 46... Rxf4 {[%clk 0:00:05.2]} 47. e6 {[%clk
0:00:21.7]} 47... Re4 {[%clk 0:00:05.2]} 48. Rd2 {[%clk 0:00:22.2]} 48... Rxf7
{[%clk 0:00:05.4]} 49. exf7 {[%clk 0:00:21.1]} 49... Kg7 {[%clk 0:00:06.3]} 50.
Rd8 {[%clk 0:00:21.4]} 1-0

[Event "Early-Titled-Tuesday-Blitz-February-27-2024"]
[Site "Chess.com"]
[Date "2024.02.27"]
[Round "1"]
[White "Iskusnyh"]
[Black "NewYearGirl"]
[Result "1-0"]
[WhiteElo "2667"]
[BlackElo "2366"]
[TimeControl "180+1"]
[EndTime "8:07:43 PST"]
[Termination "Iskusnyh won by resignation"]

1. d4 {[%clk 0:03:00.9]} 1... Nf6 {[%clk 0:02:59.4]} 2. c4 {[%clk 0:02:59.6]}
2... c5 {[%clk 0:03:00]} 3. d5 {[%clk 0:02:58.3]} 3... b5 {[%clk 0:03:00.5]} 4.
cxb5 {[%clk 0:02:57.9]} 4... a6 {[%clk 0:03:01.1]} 5. e3 {[%clk 0:02:57.3]} 5...
e6 {[%clk 0:03:01.2]} 6. Nc3 {[%clk 0:02:53.1]} 6... exd5 {[%clk 0:03:01.3]} 7.
Nxd5 {[%clk 0:02:51.6]} 7... Bb7 {[%clk 0:03:01.1]} 8. Nxf6+ {[%clk 0:02:44.6]}
8... Qxf6 {[%clk 0:03:01]} 9. Nf3 {[%clk 0:02:43.5]} 9... Be7 {[%clk 0:02:56]}
10. Be2 {[%clk 0:02:38.6]} 10... O-O {[%clk 0:02:49.2]} 11. O-O {[%clk
0:02:26.8]} 11... d5 {[%clk 0:02:49.3]} 12. bxa6 {[%clk 0:02:22.8]} 12... Nxa6
{[%clk 0:02:48.1]} 13. Bd2 {[%clk 0:02:21.2]} 13... Rfd8 {[%clk 0:02:38.4]} 14.
Re1 {[%clk 0:01:52.3]} 14... Bd6 {[%clk 0:02:27.7]} 15. Bf1 {[%clk 0:01:41.9]}
15... d4 {[%clk 0:02:19.9]} 16. exd4 {[%clk 0:01:37.8]} 16... cxd4 {[%clk
0:02:20.8]} 17. Bg5 {[%clk 0:01:25.5]} 17... Bxf3 {[%clk 0:02:02.1]} 18. Bxf6
{[%clk 0:01:21.3]} 18... Bxd1 {[%clk 0:02:01.1]} 19. Bxd8 {[%clk 0:01:20.7]}
19... Ba4 {[%clk 0:01:54.8]} 20. Bb6 {[%clk 0:01:12.6]} 20... Nb4 {[%clk
0:01:49.7]} 21. Bxd4 {[%clk 0:00:55.7]} 21... Nc2 {[%clk 0:01:48.4]} 22. Bc3
{[%clk 0:00:53.5]} 22... Nxa1 {[%clk 0:01:39.8]} 23. Rxa1 {[%clk 0:00:52.9]}
23... Bb3 {[%clk 0:01:38.9]} 24. a3 {[%clk 0:00:50.5]} 24... Rc8 {[%clk
0:01:33.8]} 25. Re1 {[%clk 0:00:46.8]} 25... f6 {[%clk 0:01:29.6]} 26. Re3
{[%clk 0:00:42.7]} 26... Bc5 {[%clk 0:01:23.9]} 27. Rd3 {[%clk 0:00:37.1]} 27...
Bc4 {[%clk 0:01:17.3]} 28. Rd7 {[%clk 0:00:33.4]} 28... Bxf1 {[%clk 0:01:16.3]}
29. Kxf1 {[%clk 0:00:32.9]} 29... Bxa3 {[%clk 0:01:16.9]} 30. Bxf6 {[%clk
0:00:28.7]} 30... Rc1+ {[%clk 0:01:12.4]} 31. Ke2 {[%clk 0:00:27.8]} 31... gxf6
{[%clk 0:01:01.2]} 32. bxa3 {[%clk 0:00:26.8]} 32... Ra1 {[%clk 0:01:00.5]} 33.
Ra7 {[%clk 0:00:25.1]} 33... h5 {[%clk 0:00:46.9]} 34. h4 {[%clk 0:00:24]} 34...
Kf8 {[%clk 0:00:42.6]} 35. Ke3 {[%clk 0:00:23.8]} 35... Ra2 {[%clk 0:00:41.7]}
36. g3 {[%clk 0:00:23.3]} 36... Ke8 {[%clk 0:00:42.2]} 37. f3 {[%clk 0:00:23.4]}
37... Kd8 {[%clk 0:00:41.7]} 38. Kf4 {[%clk 0:00:23.5]} 38... Kc8 {[%clk
0:00:38.5]} 39. Ra5 {[%clk 0:00:22.7]} 39... Kb7 {[%clk 0:00:31.1]} 40. Rxh5
{[%clk 0:00:22.1]} 40... Rxa3 {[%clk 0:00:31]} 41. Kg4 {[%clk 0:00:22.2]} 41...
Kc7 {[%clk 0:00:29.2]} 42. Rd5 {[%clk 0:00:18.2]} 42... Kc6 {[%clk 0:00:27.8]}
43. Rd1 {[%clk 0:00:17.5]} 43... Ra5 {[%clk 0:00:20.9]} 44. h5 {[%clk
0:00:17.2]} 1-0

[Event "Early-Titled-Tuesday-Blitz-February-27-2024"]
[Site "Chess.com"]
[Date "2024.02.27"]
[Round "1"]
[White "SashaKuzhilniy"]
[Black "Kev4444444444"]
[Result "1-0"]
[WhiteElo "2608"]
[BlackElo "2255"]
[TimeControl "180+1"]
[EndTime "8:07:46 PST"]
[Termination "SashaKuzhilniy won on time"]

1. b3 {[%clk 0:02:59.8]} 1... e5 {[%clk 0:02:57.9]} 2. Bb2 {[%clk 0:03:00.7]}
2... Nc6 {[%clk 0:02:58.1]} 3. e3 {[%clk 0:03:00.9]} 3... d6 {[%clk 0:02:57.5]}
4. Nf3 {[%clk 0:02:59.7]} 4... Bg4 {[%clk 0:02:49.4]} 5. Be2 {[%clk 0:02:58.6]}
5... Nf6 {[%clk 0:02:48]} 6. h3 {[%clk 0:02:58.4]} 6... Bh5 {[%clk 0:02:47.6]}
7. c4 {[%clk 0:02:56.5]} 7... Be7 {[%clk 0:02:46.3]} 8. Nc3 {[%clk 0:02:56.5]}
8... O-O {[%clk 0:02:46.1]} 9. O-O {[%clk 0:02:56.3]} 9... h6 {[%clk 0:02:45.3]}
10. d4 {[%clk 0:02:53.2]} 10... Re8 {[%clk 0:02:37.4]} 11. d5 {[%clk 0:02:38.7]}
11... Nb8 {[%clk 0:02:37.3]} 12. e4 {[%clk 0:02:38.8]} 12... c6 {[%clk 0:02:30]}
13. g4 {[%clk 0:02:34.6]} 13... Bg6 {[%clk 0:02:29.9]} 14. Nd2 {[%clk
0:02:34.4]} 14... Nbd7 {[%clk 0:02:26.9]} 15. f3 {[%clk 0:02:34.2]} 15... Nh7
{[%clk 0:02:23.4]} 16. Kg2 {[%clk 0:02:32]} 16... a5 {[%clk 0:02:17.3]} 17. Rc1
{[%clk 0:02:29.7]} 17... Nc5 {[%clk 0:02:16.6]} 18. a3 {[%clk 0:02:29.5]} 18...
Nf8 {[%clk 0:02:10.4]} 19. Rh1 {[%clk 0:02:19]} 19... Bh7 {[%clk 0:02:07.9]} 20.
b4 {[%clk 0:02:13.5]} 20... axb4 {[%clk 0:02:07.3]} 21. axb4 {[%clk 0:02:14.4]}
21... Na6 {[%clk 0:02:07.6]} 22. Qb3 {[%clk 0:02:14]} 22... Qb6 {[%clk
0:01:59.6]} 23. Na4 {[%clk 0:02:12.6]} 23... Qxb4 {[%clk 0:01:57.5]} 24. Qxb4
{[%clk 0:02:10.7]} 24... Nxb4 {[%clk 0:01:58.4]} 25. Nb6 {[%clk 0:02:10.8]}
25... Ra6 {[%clk 0:01:49.4]} 26. c5 {[%clk 0:02:10.2]} 26... Ra2 {[%clk
0:01:41.6]} 27. Bc3 {[%clk 0:02:10.4]} 27... dxc5 {[%clk 0:01:41.4]} 28. Bc4
{[%clk 0:02:08.3]} 28... Ra3 {[%clk 0:01:35.6]} 29. h4 {[%clk 0:01:52.2]} 29...
Ng6 {[%clk 0:01:33.7]} 30. Kg3 {[%clk 0:01:51.9]} 30... Bd8 {[%clk 0:01:29]} 31.
Nd7 {[%clk 0:01:48.6]} 31... cxd5 {[%clk 0:01:25.1]} 32. exd5 {[%clk 0:01:42.4]}
32... b6 {[%clk 0:01:15]} 33. Ne4 {[%clk 0:01:27.9]} 33... Bc7 {[%clk
0:01:02.5]} 34. d6 {[%clk 0:01:26.9]} 34... Bd8 {[%clk 0:01:00.8]} 35. Bxb4
{[%clk 0:01:23.4]} 35... cxb4 {[%clk 0:01:00.7]} 36. Bb5 {[%clk 0:01:11.3]}
36... Kh8 {[%clk 0:00:36.9]} 37. Rc8 {[%clk 0:01:06.8]} 37... Nf4 {[%clk
0:00:33.6]} 38. Nxb6 {[%clk 0:00:53.5]} 38... Bxe4 {[%clk 0:00:26.1]} 39. Rf1
{[%clk 0:00:47.8]} 39... Bb7 {[%clk 0:00:20.4]} 40. Bxe8 {[%clk 0:00:45.3]}
40... Bxb6 {[%clk 0:00:18.2]} 41. Rb8 {[%clk 0:00:43.7]} 41... Ne2+ {[%clk
0:00:17.9]} 42. Kh2 {[%clk 0:00:42.1]} 42... Ra7 {[%clk 0:00:15.5]} 43. Bxf7+
{[%clk 0:00:41.6]} 43... Kh7 {[%clk 0:00:15.3]} 44. h5 {[%clk 0:00:42.3]} 44...
g5 {[%clk 0:00:14.9]} 45. hxg6+ {[%clk 0:00:41.5]} 45... Kg7 {[%clk 0:00:15.1]}
46. d7 {[%clk 0:00:40.7]} 46... Bc7 {[%clk 0:00:12.2]} 47. d8=Q {[%clk
0:00:40.9]} 47... Bxd8 {[%clk 0:00:12.5]} 48. Rxd8 {[%clk 0:00:41.8]} 48... Nf4
{[%clk 0:00:08.4]} 49. Rd7 {[%clk 0:00:38.9]} 49... Kf6 {[%clk 0:00:07.3]} 50.
g7 {[%clk 0:00:37.7]} 50... Kxg7 {[%clk 0:00:04.3]} 51. Bd5+ {[%clk 0:00:38.3]}
51... Kf6 {[%clk 0:00:04.3]} 52. Rxb7 {[%clk 0:00:38.1]} 52... Ra4 {[%clk
0:00:03.1]} 53. Be4 {[%clk 0:00:38]} 53... Ra2+ {[%clk 0:00:02.2]} 54. Kh1
{[%clk 0:00:38.1]} 54... Ne2 {[%clk 0:00:01.8]} 55. Rg1 {[%clk 0:00:34.3]} 55...
Rb2 {[%clk 0:00:01.3]} 56. Rg2 {[%clk 0:00:33]} 1-0

[Event "Early-Titled-Tuesday-Blitz-February-27-2024"]
[Site "Chess.com"]
[Date "2024.02.27"]
[Round "1"]
[White "Kleyton_Lima"]
[Black "cthake"]
[Result "1-0"]
[WhiteElo "2544"]
[BlackElo "1812"]
[TimeControl "180+1"]
[EndTime "8:07:46 PST"]
[Termination "Kleyton_Lima won by checkmate"]

1. d4 {[%clk 0:02:58.6]} 1... e6 {[%clk 0:02:56.4]} 2. c4 {[%clk 0:02:54.5]}
2... c5 {[%clk 0:02:53.2]} 3. Nf3 {[%clk 0:02:51.3]} 3... d6 {[%clk 0:02:49.8]}
4. g3 {[%clk 0:02:48.9]} 4... g6 {[%clk 0:02:46.9]} 5. Nc3 {[%clk 0:02:44.2]}
5... cxd4 {[%clk 0:02:44.2]} 6. Qxd4 {[%clk 0:02:42.9]} 6... Qf6 {[%clk
0:02:42.8]} 7. Qxf6 {[%clk 0:02:40.4]} 7... Nxf6 {[%clk 0:02:42.9]} 8. Nb5
{[%clk 0:02:41.1]} 8... Na6 {[%clk 0:02:39.9]} 9. Bf4 {[%clk 0:02:37.6]} 9... e5
{[%clk 0:02:39.2]} 10. Bg5 {[%clk 0:02:31.1]} 10... Be7 {[%clk 0:02:39.3]} 11.
Bxf6 {[%clk 0:02:25.7]} 11... Bxf6 {[%clk 0:02:38.9]} 12. Nxd6+ {[%clk
0:02:25.9]} 12... Ke7 {[%clk 0:02:35]} 13. Ne4 {[%clk 0:02:19.8]} 13... Nb4
{[%clk 0:02:32.6]} 14. O-O-O {[%clk 0:02:14.9]} 14... Bf5 {[%clk 0:02:29.7]} 15.
Nc3 {[%clk 0:02:10.5]} 15... Be6 {[%clk 0:02:17.9]} 16. a3 {[%clk 0:02:09.7]}
16... Nc6 {[%clk 0:02:16.2]} 17. Bg2 {[%clk 0:02:09.2]} 17... Rad8 {[%clk
0:02:14.5]} 18. e3 {[%clk 0:02:06.3]} 18... a6 {[%clk 0:02:13.8]} 19. Nd2 {[%clk
0:01:58.7]} 19... Rd7 {[%clk 0:02:10.9]} 20. Bxc6 {[%clk 0:01:56]} 20... bxc6
{[%clk 0:02:09.6]} 21. b3 {[%clk 0:01:56.2]} 21... Rhd8 {[%clk 0:02:08.8]} 22.
Nde4 {[%clk 0:01:55.9]} 22... Rxd1+ {[%clk 0:01:56.7]} 23. Rxd1 {[%clk
0:01:56.8]} 23... Rxd1+ {[%clk 0:01:56.1]} 24. Kxd1 {[%clk 0:01:57.7]} 24... Bg7
{[%clk 0:01:52.3]} 25. Kd2 {[%clk 0:01:50.8]} 25... f5 {[%clk 0:01:42.7]} 26.
Nc5 {[%clk 0:01:50.7]} 26... Bc8 {[%clk 0:01:42.7]} 27. N3a4 {[%clk 0:01:46.1]}
27... Kd6 {[%clk 0:01:41.4]} 28. b4 {[%clk 0:01:45]} 28... g5 {[%clk 0:01:35.6]}
29. Nb6 {[%clk 0:01:43.3]} 29... Be6 {[%clk 0:01:28.4]} 30. Nxa6 {[%clk
0:01:41.8]} 30... f4 {[%clk 0:01:24.4]} 31. Nc5 {[%clk 0:01:40.9]} 31... fxg3
{[%clk 0:01:22.2]} 32. fxg3 {[%clk 0:01:37.6]} 32... Bf5 {[%clk 0:01:18]} 33. a4
{[%clk 0:01:26.9]} 33... Kc7 {[%clk 0:01:16.5]} 34. a5 {[%clk 0:01:26.7]} 34...
h5 {[%clk 0:01:13.3]} 35. Nba4 {[%clk 0:01:25.5]} 35... h4 {[%clk 0:01:11.6]}
36. Nc3 {[%clk 0:01:24.7]} 36... hxg3 {[%clk 0:01:10.7]} 37. hxg3 {[%clk
0:01:25.6]} 37... Bf8 {[%clk 0:01:06.2]} 38. N3e4 {[%clk 0:01:24.6]} 38... Be7
{[%clk 0:00:58.8]} 39. b5 {[%clk 0:01:22.8]} 39... cxb5 {[%clk 0:00:57.9]} 40.
cxb5 {[%clk 0:01:23.7]} 40... Bc8 {[%clk 0:00:52]} 41. Kc3 {[%clk 0:01:23.4]}
41... g4 {[%clk 0:00:44]} 42. Kc4 {[%clk 0:01:19.5]} 42... Bf5 {[%clk
0:00:37.1]} 43. a6 {[%clk 0:01:16.4]} 43... Kb6 {[%clk 0:00:35.9]} 44. Na4+
{[%clk 0:01:11.6]} 44... Ka7 {[%clk 0:00:33.8]} 45. Nec5 {[%clk 0:01:11.8]}
45... Bg5 {[%clk 0:00:28.2]} 46. b6+ {[%clk 0:01:10.9]} 46... Kb8 {[%clk
0:00:28.3]} 47. Kd5 {[%clk 0:01:10.8]} 47... Bxe3 {[%clk 0:00:24.3]} 48. Kc6
{[%clk 0:01:09.3]} 48... Bc8 {[%clk 0:00:18.7]} 49. Nd7+ {[%clk 0:00:47.2]}
49... Bxd7+ {[%clk 0:00:15.7]} 50. Kxd7 {[%clk 0:00:48.1]} 50... e4 {[%clk
0:00:16]} 51. Kc6 {[%clk 0:00:42.7]} 51... Bf2 {[%clk 0:00:15.9]} 52. a7+ {[%clk
0:00:42.3]} 52... Ka8 {[%clk 0:00:15.4]} 53. Nc3 {[%clk 0:00:26.7]} 53... e3
{[%clk 0:00:14.8]} 54. Nb5 {[%clk 0:00:23.4]} 54... e2 {[%clk 0:00:06.6]} 55.
Nc7# {[%clk 0:00:23.4]} 1-0